[Event "Titled Tuesday Blitz April 11 Late 2023"]
[White "Sieciechowicz, Marcin"]
[Black "Howell, David W L"]
[WhiteFideId "1130170"]
[BlackFideId "410608"]
[WhiteElo "2302"]
[BlackElo "2567"]
[Result "0-1"]
[Round "09"]
[TimeControl "180+2"]
[Date "2023.04.11"]
[WhiteClock "0:00:03"]
[BlackClock "0:00:10"]

1. d4 {[%clk 0:03:00]}  f5 {[%clk 0:02:42]} 2. Nf3 {[%clk 0:02:59]}  Nf6 {[%clk 0:02:42]} 3. g3 {[%clk 0:03:00]}  b6 {[%clk 0:02:40]} 4. Bg2 {[%clk 0:03:00]}  Bb7 {[%clk 0:02:41]} 5. O-O {[%clk 0:03:00]}  e6 {[%clk 0:02:41]} 6. c4 {[%clk 0:03:01]}  Na6 {[%clk 0:02:36]} 7. d5 {[%clk 0:03:01]}  Bd6 {[%clk 0:02:31]} 8. Nc3 {[%clk 0:03:00]}  O-O {[%clk 0:02:31]} 9. Nd4 {[%clk 0:02:55]}  Qe7 {[%clk 0:02:12]} 10. Ncb5 {[%clk 0:02:24]}  Nc5 {[%clk 0:01:59]} 11. Nxd6 {[%clk 0:02:20]}  cxd6 {[%clk 0:01:56]} 12. b4 {[%clk 0:02:02]}  Na6 {[%clk 0:01:49]} 13. a3 {[%clk 0:01:45]}  Nc7 {[%clk 0:01:24]} 14. Bb2 {[%clk 0:01:42]}  Rab8 {[%clk 0:01:22]} 15. a4 {[%clk 0:01:36]}  Qf7 {[%clk 0:01:15]} 16. b5 {[%clk 0:01:31]}  Ne4 {[%clk 0:00:58]} 17. dxe6 {[%clk 0:00:41]}  dxe6 {[%clk 0:00:53]} 18. Nb3 {[%clk 0:00:33]}  Ne8 {[%clk 0:00:47]} 19. a5 {[%clk 0:00:33]}  Qc7 {[%clk 0:00:39]} 20. axb6 {[%clk 0:00:31]}  axb6 {[%clk 0:00:40]} 21. Qd4 {[%clk 0:00:30]}  e5 {[%clk 0:00:37]} 22. Qd3 {[%clk 0:00:30]}  N8f6 {[%clk 0:00:36]} 23. Ra7 {[%clk 0:00:27]}  Ra8 {[%clk 0:00:36]} 24. Rfa1 {[%clk 0:00:26]}  Rxa7 {[%clk 0:00:35]} 25. Rxa7 {[%clk 0:00:27]}  Ra8 {[%clk 0:00:36]} 26. Rxa8+ {[%clk 0:00:27]}  Bxa8 {[%clk 0:00:37]} 27. Ba3 {[%clk 0:00:27]}  g6 {[%clk 0:00:29]} 28. h3 {[%clk 0:00:24]}  Kf7 {[%clk 0:00:29]} 29. Bb4 {[%clk 0:00:16]}  Bb7 {[%clk 0:00:29]} 30. g4 {[%clk 0:00:09]}  Bc8 {[%clk 0:00:26]} 31. g5 {[%clk 0:00:04]}  Ne8 {[%clk 0:00:18]} 32. Bxe4 {[%clk 0:00:03]}  fxe4 {[%clk 0:00:19]} 33. Qxe4 {[%clk 0:00:03]}  Bf5 {[%clk 0:00:19]} 34. Qc6 {[%clk 0:00:04]}  Qxc6 {[%clk 0:00:15]} 35. bxc6 {[%clk 0:00:05]}  Ke7 {[%clk 0:00:16]} 36. f3 {[%clk 0:00:04]}  Bxh3 {[%clk 0:00:15]} 37. e4 {[%clk 0:00:04]}  Kd8 {[%clk 0:00:16]} 38. Nc1 {[%clk 0:00:02]}  Kc7 {[%clk 0:00:15]} 39. Nd3 {[%clk 0:00:03]}  Kxc6 {[%clk 0:00:16]} 40. f4 {[%clk 0:00:03]}  Be6 {[%clk 0:00:12]} 41. fxe5 {[%clk 0:00:02]}  Bxc4 {[%clk 0:00:13]} 42. Nb2 {[%clk 0:00:02]}  Bb5 {[%clk 0:00:10]} 43. Bc3 {[%clk 0:00:02]}  dxe5 {[%clk 0:00:09]} 44. Bxe5 {[%clk 0:00:03]}  Nd6 {[%clk 0:00:09]} 45. Kf2 {[%clk 0:00:02]}  Nxe4+ {[%clk 0:00:09]} 46. Ke3 {[%clk 0:00:03]}  Nxg5 {[%clk 0:00:10]} 0-1


[Site "https://www.chess.com"]

[Event "Titled Tuesday Blitz April 11 Late 2023"]
[White "Aldokhin, Ivan"]
[Black "Indjic, Aleksandar"]
[WhiteFideId "24115720"]
[BlackFideId "911925"]
[WhiteElo "2322"]
[BlackElo "2614"]
[Result "0-1"]
[Round "09"]
[TimeControl "180+2"]
[Date "2023.04.11"]
[WhiteClock "0:00:02"]
[BlackClock "0:01:15"]

1. e4 {[%clk 0:03:00]}  c6 {[%clk 0:02:54]} 2. Nc3 {[%clk 0:03:00]}  d5 {[%clk 0:02:54]} 3. d4 {[%clk 0:03:01]}  dxe4 {[%clk 0:02:53]} 4. Nxe4 {[%clk 0:03:02]}  Nf6 {[%clk 0:02:52]} 5. Nxf6+ {[%clk 0:03:02]}  exf6 {[%clk 0:02:52]} 6. c3 {[%clk 0:03:03]}  Bd6 {[%clk 0:02:50]} 7. Bd3 {[%clk 0:03:04]}  Na6 {[%clk 0:02:50]} 8. Ne2 {[%clk 0:03:03]}  Nc7 {[%clk 0:02:50]} 9. O-O {[%clk 0:03:01]}  Be6 {[%clk 0:02:49]} 10. Qc2 {[%clk 0:02:58]}  Qd7 {[%clk 0:02:49]} 11. Nf4 {[%clk 0:02:52]}  Bxf4 {[%clk 0:02:48]} 12. Bxf4 {[%clk 0:02:51]}  Nd5 {[%clk 0:02:49]} 13. Bd2 {[%clk 0:02:44]}  b5 {[%clk 0:02:49]} 14. b3 {[%clk 0:02:42]}  h5 {[%clk 0:02:46]} 15. c4 {[%clk 0:02:25]}  bxc4 {[%clk 0:02:45]} 16. bxc4 {[%clk 0:02:25]}  Ne7 {[%clk 0:02:45]} 17. Bb4 {[%clk 0:02:19]}  O-O {[%clk 0:02:34]} 18. Bc5 {[%clk 0:01:26]}  Rfe8 {[%clk 0:02:32]} 19. Rfe1 {[%clk 0:01:19]}  Nf5 {[%clk 0:02:30]} 20. Qc3 {[%clk 0:01:13]}  Nh4 {[%clk 0:02:26]} 21. Bf1 {[%clk 0:01:09]}  Bg4 {[%clk 0:02:23]} 22. a4 {[%clk 0:01:07]}  Rxe1 {[%clk 0:02:19]} 23. Rxe1 {[%clk 0:01:05]}  Ng6 {[%clk 0:02:18]} 24. a5 {[%clk 0:01:00]}  a6 {[%clk 0:02:17]} 25. h3 {[%clk 0:00:35]}  Be6 {[%clk 0:02:15]} 26. Qf3 {[%clk 0:00:34]}  h4 {[%clk 0:02:09]} 27. Rd1 {[%clk 0:00:34]}  Rc8 {[%clk 0:02:01]} 28. Bb6 {[%clk 0:00:27]}  Bf5 {[%clk 0:01:58]} 29. d5 {[%clk 0:00:22]}  Ne5 {[%clk 0:01:56]} 30. Qf4 {[%clk 0:00:19]}  g5 {[%clk 0:01:56]} 31. Qd4 {[%clk 0:00:18]}  Bxh3 {[%clk 0:01:50]} 32. dxc6 {[%clk 0:00:14]}  Qxc6 {[%clk 0:01:50]} 33. Qd5 {[%clk 0:00:08]}  Be6 {[%clk 0:01:25]} 34. Qxc6 {[%clk 0:00:08]}  Rxc6 {[%clk 0:01:25]} 35. c5 {[%clk 0:00:08]}  Bc4 {[%clk 0:01:25]} 36. Rd8+ {[%clk 0:00:01]}  Kg7 {[%clk 0:01:25]} 37. Bxc4 {[%clk 0:00:01]}  Nxc4 {[%clk 0:01:24]} 38. Ra8 {[%clk 0:00:02]}  Re6 {[%clk 0:01:19]} 39. Rxa6 {[%clk 0:00:02]}  g4 {[%clk 0:01:18]} 40. Kh2 {[%clk 0:00:03]}  Nd2 {[%clk 0:01:16]} 41. Ra8 {[%clk 0:00:03]}  Re1 {[%clk 0:01:14]} 42. c6 {[%clk 0:00:01]}  Nf1+ {[%clk 0:01:14]} 43. Kg1 {[%clk 0:00:01]}  Ng3+ {[%clk 0:01:15]} 44. Kh2 {[%clk 0:00:02]}  Rh1# {[%clk 0:01:15]} 0-1


[Site "https://www.chess.com"]

[Event "Titled Tuesday Blitz April 11 Late 2023"]
[White "Manzone, Alessandro"]
[Black "Holt, Conrad"]
[WhiteFideId "112488"]
[BlackFideId "2034387"]
[WhiteElo "2255"]
[BlackElo "2592"]
[Result "1-0"]
[Round "09"]
[TimeControl "180+2"]
[Date "2023.04.11"]
[WhiteClock "0:00:06"]
[BlackClock "0:00:07"]

1. d4 {[%clk 0:03:00]}  d5 {[%clk 0:03:00]} 2. c4 {[%clk 0:03:00]}  c6 {[%clk 0:03:00]} 3. Nf3 {[%clk 0:03:00]}  Nf6 {[%clk 0:02:59]} 4. Qc2 {[%clk 0:03:00]}  dxc4 {[%clk 0:02:59]} 5. e4 {[%clk 0:02:59]}  b5 {[%clk 0:02:58]} 6. b3 {[%clk 0:02:46]}  cxb3 {[%clk 0:02:52]} 7. axb3 {[%clk 0:02:47]}  e6 {[%clk 0:02:50]} 8. Bb2 {[%clk 0:02:39]}  Be7 {[%clk 0:02:43]} 9. Nc3 {[%clk 0:02:29]}  Bb7 {[%clk 0:02:41]} 10. Be2 {[%clk 0:02:25]}  O-O {[%clk 0:02:37]} 11. O-O {[%clk 0:02:25]}  Nbd7 {[%clk 0:02:36]} 12. e5 {[%clk 0:02:25]}  Nd5 {[%clk 0:02:23]} 13. Nxd5 {[%clk 0:02:24]}  exd5 {[%clk 0:02:23]} 14. Bd3 {[%clk 0:02:20]}  g6 {[%clk 0:02:20]} 15. Bc1 {[%clk 0:02:18]}  c5 {[%clk 0:02:09]} 16. Bxb5 {[%clk 0:01:55]}  a6 {[%clk 0:01:52]} 17. Bxd7 {[%clk 0:01:51]}  Qxd7 {[%clk 0:01:51]} 18. Ba3 {[%clk 0:01:50]}  cxd4 {[%clk 0:01:46]} 19. Bxe7 {[%clk 0:01:27]}  Qxe7 {[%clk 0:01:46]} 20. Qd2 {[%clk 0:01:25]}  Rfb8 {[%clk 0:01:35]} 21. Qxd4 {[%clk 0:01:23]}  Bc6 {[%clk 0:01:36]} 22. Rfc1 {[%clk 0:01:20]}  Bd7 {[%clk 0:01:35]} 23. Rc3 {[%clk 0:01:14]}  Be6 {[%clk 0:01:30]} 24. Ra4 {[%clk 0:01:10]}  a5 {[%clk 0:01:25]} 25. h3 {[%clk 0:01:06]}  Rb5 {[%clk 0:01:20]} 26. Qd2 {[%clk 0:00:56]}  Rb4 {[%clk 0:01:05]} 27. Nd4 {[%clk 0:00:52]}  Bd7 {[%clk 0:01:00]} 28. Rxb4 {[%clk 0:00:44]}  Qxb4 {[%clk 0:00:59]} 29. Qe3 {[%clk 0:00:36]}  Qb6 {[%clk 0:00:28]} 30. Qf4 {[%clk 0:00:36]}  Re8 {[%clk 0:00:25]} 31. Rf3 {[%clk 0:00:34]}  Re7 {[%clk 0:00:20]} 32. Re3 {[%clk 0:00:31]}  Qb4 {[%clk 0:00:19]} 33. Qf6 {[%clk 0:00:21]}  Re8 {[%clk 0:00:10]} 34. e6 {[%clk 0:00:21]}  fxe6 {[%clk 0:00:09]} 35. Nxe6 {[%clk 0:00:20]}  Qe7 {[%clk 0:00:08]} 36. Qxe7 {[%clk 0:00:19]}  Rxe7 {[%clk 0:00:09]} 37. Nd4 {[%clk 0:00:20]}  Kf7 {[%clk 0:00:07]} 38. Rxe7+ {[%clk 0:00:17]}  Kxe7 {[%clk 0:00:07]} 39. Kf1 {[%clk 0:00:18]}  Kd6 {[%clk 0:00:07]} 40. Ke2 {[%clk 0:00:18]}  Kc5 {[%clk 0:00:08]} 41. Ke3 {[%clk 0:00:19]}  Kb4 {[%clk 0:00:08]} 42. f4 {[%clk 0:00:19]}  Kc3 {[%clk 0:00:08]} 43. g4 {[%clk 0:00:19]}  h6 {[%clk 0:00:03]} 44. f5 {[%clk 0:00:18]}  gxf5 {[%clk 0:00:03]} 45. gxf5 {[%clk 0:00:19]}  Bxf5 {[%clk 0:00:03]} 46. Nxf5 {[%clk 0:00:19]}  Kxb3 {[%clk 0:00:04]} 47. Kd4 {[%clk 0:00:19]}  a4 {[%clk 0:00:04]} 48. Kd3 {[%clk 0:00:12]}  a3 {[%clk 0:00:04]} 49. Nd4+ {[%clk 0:00:12]}  Kb2 {[%clk 0:00:05]} 50. Nc2 {[%clk 0:00:07]}  a2 {[%clk 0:00:04]} 51. h4 {[%clk 0:00:05]}  h5 {[%clk 0:00:01]} 52. Kd2 {[%clk 0:00:04]}  Kb1 {[%clk 0:00:02]} 53. Kd1 {[%clk 0:00:02]}  Kb2 {[%clk 0:00:02]} 54. Kd2 {[%clk 0:00:03]}  d4 {[%clk 0:00:02]} 55. Kd3 {[%clk 0:00:02]}  Kc1 {[%clk 0:00:02]} 56. Na1 {[%clk 0:00:02]}  Kb1 {[%clk 0:00:02]} 57. Nc2 {[%clk 0:00:02]}  Kc1 {[%clk 0:00:02]} 58. Nxd4 {[%clk 0:00:02]}  a1=Q {[%clk 0:00:01]} 59. Nb3+ {[%clk 0:00:02]}  Kb2 {[%clk 0:00:02]} 60. Nxa1 {[%clk 0:00:03]}  Kxa1 {[%clk 0:00:03]} 61. Ke4 {[%clk 0:00:04]}  Kb2 {[%clk 0:00:04]} 62. Kf5 {[%clk 0:00:05]}  Kc3 {[%clk 0:00:05]} 63. Kg5 {[%clk 0:00:06]}  Kd4 {[%clk 0:00:05]} 64. Kxh5 {[%clk 0:00:06]}  Ke5 {[%clk 0:00:06]} 65. Kg6 {[%clk 0:00:07]}  Ke6 {[%clk 0:00:07]} 66. h5 {[%clk 0:00:06]} 1-0


[Site "https://www.chess.com"]

[Event "Titled Tuesday Blitz April 11 Late 2023"]
[White "Klenburg, Michael"]
[Black "Goltsev, Dmitry"]
[WhiteFideId "14102072"]
[BlackFideId "24176710"]
[WhiteElo "2396"]
[BlackElo "2336"]
[Result "0-1"]
[Round "09"]
[TimeControl "180+2"]
[Date "2023.04.11"]
[WhiteClock "0:00:55"]
[BlackClock "0:00:54"]

1. g3 {[%clk 0:03:00]}  h5 {[%clk 0:02:05]} 2. Nf3 {[%clk 0:02:58]}  b6 {[%clk 0:02:05]} 3. d3 {[%clk 0:02:57]}  Bb7 {[%clk 0:02:06]} 4. e4 {[%clk 0:02:57]}  e6 {[%clk 0:02:06]} 5. Nbd2 {[%clk 0:02:56]}  d5 {[%clk 0:02:06]} 6. Bg2 {[%clk 0:02:56]}  Nf6 {[%clk 0:02:06]} 7. e5 {[%clk 0:02:53]}  Nfd7 {[%clk 0:02:05]} 8. c3 {[%clk 0:02:49]}  Be7 {[%clk 0:02:04]} 9. O-O {[%clk 0:02:48]}  c5 {[%clk 0:02:03]} 10. a3 {[%clk 0:02:46]}  Nc6 {[%clk 0:02:03]} 11. d4 {[%clk 0:02:45]}  g5 {[%clk 0:02:01]} 12. Nb3 {[%clk 0:02:40]}  g4 {[%clk 0:01:57]} 13. Ne1 {[%clk 0:02:39]}  Ba6 {[%clk 0:01:56]} 14. Be3 {[%clk 0:02:38]}  Bxf1 {[%clk 0:01:29]} 15. Bxf1 {[%clk 0:02:38]}  a6 {[%clk 0:01:28]} 16. Ng2 {[%clk 0:02:32]}  Qc7 {[%clk 0:01:19]} 17. Nf4 {[%clk 0:02:31]}  c4 {[%clk 0:01:18]} 18. Nd2 {[%clk 0:02:30]}  b5 {[%clk 0:01:18]} 19. f3 {[%clk 0:02:17]}  gxf3 {[%clk 0:01:17]} 20. Qxf3 {[%clk 0:02:17]}  O-O-O {[%clk 0:01:17]} 21. Nxh5 {[%clk 0:02:09]}  Ndxe5 {[%clk 0:01:07]} 22. dxe5 {[%clk 0:02:08]}  Nxe5 {[%clk 0:01:08]} 23. Qe2 {[%clk 0:02:07]}  Bc5 {[%clk 0:01:08]} 24. Bd4 {[%clk 0:01:36]}  Nd3 {[%clk 0:01:02]} 25. Nf6 {[%clk 0:01:15]}  e5 {[%clk 0:00:58]} 26. Bxc5 {[%clk 0:01:12]}  Qxc5+ {[%clk 0:00:59]} 27. Kg2 {[%clk 0:01:12]}  Rh6 {[%clk 0:00:55]} 28. Ng4 {[%clk 0:01:11]}  Rg6 {[%clk 0:00:55]} 29. Nf2 {[%clk 0:00:55]}  Nf4+ {[%clk 0:00:54]} 0-1


[Site "https://www.chess.com"]

[Event "Titled Tuesday Blitz April 11 Late 2023"]
[White "Novik, Maxim"]
[Black "Kosteniuk, Alexandra"]
[WhiteFideId "4102924"]
[BlackFideId "4128125"]
[WhiteElo "2287"]
[BlackElo "2453"]
[Result "0-1"]
[Round "09"]
[TimeControl "180+2"]
[Date "2023.04.11"]
[WhiteClock "0:00:01"]
[BlackClock "0:00:03"]

1. c4 {[%clk 0:02:57]}  f5 {[%clk 0:02:59]} 2. d4 {[%clk 0:02:55]}  Nf6 {[%clk 0:03:00]} 3. g3 {[%clk 0:02:55]}  g6 {[%clk 0:03:00]} 4. Bg2 {[%clk 0:02:55]}  Bg7 {[%clk 0:03:01]} 5. Nf3 {[%clk 0:02:56]}  O-O {[%clk 0:03:01]} 6. O-O {[%clk 0:02:56]}  d6 {[%clk 0:03:02]} 7. Qb3 {[%clk 0:02:56]}  Nc6 {[%clk 0:02:58]} 8. Rd1 {[%clk 0:02:55]}  a5 {[%clk 0:02:52]} 9. c5+ {[%clk 0:02:55]}  e6 {[%clk 0:02:46]} 10. cxd6 {[%clk 0:02:55]}  cxd6 {[%clk 0:02:45]} 11. Nc3 {[%clk 0:02:54]}  d5 {[%clk 0:02:27]} 12. Bf4 {[%clk 0:02:51]}  Ne4 {[%clk 0:02:23]} 13. Rac1 {[%clk 0:02:50]}  a4 {[%clk 0:02:16]} 14. Nxa4 {[%clk 0:02:42]}  g5 {[%clk 0:02:16]} 15. Be5 {[%clk 0:02:41]}  Nxe5 {[%clk 0:01:49]} 16. Nxe5 {[%clk 0:02:40]}  Bxe5 {[%clk 0:01:37]} 17. dxe5 {[%clk 0:02:40]}  Bd7 {[%clk 0:01:31]} 18. Nb6 {[%clk 0:02:23]}  g4 {[%clk 0:01:28]} 19. Nxa8 {[%clk 0:02:20]}  Qxa8 {[%clk 0:01:29]} 20. f3 {[%clk 0:02:13]}  gxf3 {[%clk 0:01:24]} 21. Bxf3 {[%clk 0:02:08]}  Qa7+ {[%clk 0:01:22]} 22. e3 {[%clk 0:02:07]}  Ng5 {[%clk 0:01:19]} 23. Bg2 {[%clk 0:02:03]}  Bc6 {[%clk 0:01:19]} 24. Rd4 {[%clk 0:01:49]}  Nf7 {[%clk 0:01:18]} 25. g4 {[%clk 0:01:25]}  Nxe5 {[%clk 0:01:17]} 26. gxf5 {[%clk 0:01:25]}  Rxf5 {[%clk 0:01:18]} 27. Rf1 {[%clk 0:01:21]}  Rxf1+ {[%clk 0:01:11]} 28. Kxf1 {[%clk 0:01:21]}  Qc5 {[%clk 0:01:09]} 29. Qd1 {[%clk 0:01:16]}  Be8 {[%clk 0:01:01]} 30. Kg1 {[%clk 0:01:09]}  Bg6 {[%clk 0:00:59]} 31. h3 {[%clk 0:01:06]}  Bf5 {[%clk 0:00:55]} 32. Kh2 {[%clk 0:01:05]}  Nc4 {[%clk 0:00:53]} 33. Qe1 {[%clk 0:01:03]}  Bg6 {[%clk 0:00:30]} 34. b3 {[%clk 0:00:57]}  Nd6 {[%clk 0:00:28]} 35. Qb4 {[%clk 0:00:31]}  Qc7 {[%clk 0:00:27]} 36. Kh1 {[%clk 0:00:29]}  Nf5 {[%clk 0:00:26]} 37. Qd2 {[%clk 0:00:23]}  Qg3 {[%clk 0:00:21]} 38. Rg4 {[%clk 0:00:20]}  Qe5 {[%clk 0:00:19]} 39. e4 {[%clk 0:00:18]}  Qa1+ {[%clk 0:00:16]} 40. Kh2 {[%clk 0:00:17]}  Qe5+ {[%clk 0:00:16]} 41. Kg1 {[%clk 0:00:17]}  Qa1+ {[%clk 0:00:10]} 42. Bf1 {[%clk 0:00:16]}  Nd4 {[%clk 0:00:09]} 43. Qf2 {[%clk 0:00:13]}  dxe4 {[%clk 0:00:09]} 44. h4 {[%clk 0:00:12]}  Nf3+ {[%clk 0:00:09]} 45. Kg2 {[%clk 0:00:12]}  Qe5 {[%clk 0:00:09]} 46. Qg3 {[%clk 0:00:11]}  Qb2+ {[%clk 0:00:08]} 47. Kh1 {[%clk 0:00:10]}  Qc1 {[%clk 0:00:07]} 48. Qg2 {[%clk 0:00:09]}  Qh6 {[%clk 0:00:06]} 49. Be2 {[%clk 0:00:08]}  Nxh4 {[%clk 0:00:06]} 50. Qh2 {[%clk 0:00:07]}  Qc1+ {[%clk 0:00:06]} 51. Rg1 {[%clk 0:00:07]}  Qe3 {[%clk 0:00:04]} 52. Qxh4 {[%clk 0:00:06]}  Qxe2 {[%clk 0:00:04]} 53. Qd8+ {[%clk 0:00:06]}  Kg7 {[%clk 0:00:05]} 54. Qe7+ {[%clk 0:00:06]}  Kh6 {[%clk 0:00:05]} 55. Qh4+ {[%clk 0:00:05]}  Kg7 {[%clk 0:00:06]} 56. Qe7+ {[%clk 0:00:03]}  Kh6 {[%clk 0:00:05]} 57. Qg5+ {[%clk 0:00:04]}  Kg7 {[%clk 0:00:05]} 58. Rc1 {[%clk 0:00:02]}  Qf3+ {[%clk 0:00:05]} 59. Qg2 {[%clk 0:00:03]}  Qh5+ {[%clk 0:00:04]} 60. Kg1 {[%clk 0:00:03]}  e3 {[%clk 0:00:04]} 61. Rc7+ {[%clk 0:00:01]}  Kf6 {[%clk 0:00:03]} 62. Qf1+ {[%clk 0:00:01]}  Bf5 {[%clk 0:00:03]} 0-1


[Site "https://www.chess.com"]

[Event "Titled Tuesday Blitz April 11 Late 2023"]
[White "Rozman, Levy"]
[Black "Silva, Caio Henrique Angelico"]
[WhiteFideId "2039877"]
[BlackFideId "22777210"]
[WhiteElo "2376"]
[BlackElo "2096"]
[Result "1-0"]
[Round "09"]
[TimeControl "180+2"]
[Date "2023.04.11"]
[WhiteClock "0:00:18"]
[BlackClock "0:00:04"]

1. e4 {[%clk 0:02:51]}  c6 {[%clk 0:02:58]} 2. d4 {[%clk 0:02:49]}  d5 {[%clk 0:02:58]} 3. f3 {[%clk 0:02:49]}  g6 {[%clk 0:02:57]} 4. Nc3 {[%clk 0:02:48]}  Bg7 {[%clk 0:02:56]} 5. Be3 {[%clk 0:02:49]}  dxe4 {[%clk 0:02:41]} 6. fxe4 {[%clk 0:02:47]}  Nf6 {[%clk 0:02:34]} 7. h3 {[%clk 0:02:44]}  Qa5 {[%clk 0:02:23]} 8. Qd2 {[%clk 0:02:41]}  Nbd7 {[%clk 0:02:17]} 9. Nf3 {[%clk 0:02:39]}  O-O {[%clk 0:02:11]} 10. Bd3 {[%clk 0:02:29]}  e5 {[%clk 0:01:54]} 11. O-O {[%clk 0:02:24]}  exd4 {[%clk 0:01:50]} 12. Bxd4 {[%clk 0:02:21]}  Nc5 {[%clk 0:01:40]} 13. Qg5 {[%clk 0:01:30]}  Nfd7 {[%clk 0:01:04]} 14. Bxg7 {[%clk 0:01:08]}  Kxg7 {[%clk 0:01:04]} 15. Kh1 {[%clk 0:00:59]}  Qd8 {[%clk 0:00:59]} 16. Qg3 {[%clk 0:00:54]}  Qe7 {[%clk 0:00:56]} 17. e5 {[%clk 0:00:51]}  Nb6 {[%clk 0:00:50]} 18. Rae1 {[%clk 0:00:50]}  Be6 {[%clk 0:00:49]} 19. Ng5 {[%clk 0:00:40]}  Rad8 {[%clk 0:00:48]} 20. Rf6 {[%clk 0:00:36]}  Nbd7 {[%clk 0:00:29]} 21. Ref1 {[%clk 0:00:36]}  Nxd3 {[%clk 0:00:22]} 22. cxd3 {[%clk 0:00:36]}  Nc5 {[%clk 0:00:15]} 23. R1f3 {[%clk 0:00:27]}  h6 {[%clk 0:00:13]} 24. Nge4 {[%clk 0:00:20]}  Nxe4 {[%clk 0:00:12]} 25. Nxe4 {[%clk 0:00:21]}  Bd5 {[%clk 0:00:10]} 26. Nd6 {[%clk 0:00:21]}  Bxf3 {[%clk 0:00:09]} 27. Nf5+ {[%clk 0:00:21]}  Kh8 {[%clk 0:00:09]} 28. Nxe7 {[%clk 0:00:21]}  Bh5 {[%clk 0:00:06]} 29. Qe3 {[%clk 0:00:19]}  Rde8 {[%clk 0:00:04]} 30. Qxh6# {[%clk 0:00:18]} 1-0


[Site "https://www.chess.com"]

[Event "Titled Tuesday Blitz April 11 Late 2023"]
[White "Manukyan, Sargis A."]
[Black "Estrada Nieto, Julian"]
[WhiteFideId "13303970"]
[BlackFideId "5101018"]
[WhiteElo "2187"]
[BlackElo "2161"]
[Result "1-0"]
[Round "09"]
[TimeControl "180+2"]
[Date "2023.04.11"]
[WhiteClock "0:00:56"]
[BlackClock "0:00:07"]

1. d4 {[%clk 0:03:00]}  d5 {[%clk 0:02:55]} 2. c4 {[%clk 0:03:01]}  dxc4 {[%clk 0:02:55]} 3. e4 {[%clk 0:03:01]}  e5 {[%clk 0:02:55]} 4. Nf3 {[%clk 0:03:01]}  exd4 {[%clk 0:02:55]} 5. Bxc4 {[%clk 0:03:01]}  Nc6 {[%clk 0:02:56]} 6. O-O {[%clk 0:02:59]}  Be6 {[%clk 0:02:57]} 7. Bxe6 {[%clk 0:03:00]}  fxe6 {[%clk 0:02:57]} 8. Qb3 {[%clk 0:03:00]}  Qd7 {[%clk 0:02:58]} 9. Qxb7 {[%clk 0:03:01]}  Rb8 {[%clk 0:02:58]} 10. Qa6 {[%clk 0:03:01]}  Nge7 {[%clk 0:02:59]} 11. Nbd2 {[%clk 0:03:01]}  Ng6 {[%clk 0:02:59]} 12. b3 {[%clk 0:03:01]}  Be7 {[%clk 0:02:59]} 13. Bb2 {[%clk 0:03:01]}  O-O {[%clk 0:02:58]} 14. Rfc1 {[%clk 0:02:58]}  Rb6 {[%clk 0:02:30]} 15. Qc4 {[%clk 0:02:58]}  Bd6 {[%clk 0:01:56]} 16. Nxd4 {[%clk 0:02:44]}  Nxd4 {[%clk 0:01:49]} 17. Qxd4 {[%clk 0:02:29]}  Bxh2+ {[%clk 0:01:39]} 18. Kxh2 {[%clk 0:02:26]}  Rd6 {[%clk 0:01:39]} 19. Qxg7+ {[%clk 0:02:08]}  Qxg7 {[%clk 0:01:38]} 20. Bxg7 {[%clk 0:02:08]}  Kxg7 {[%clk 0:01:23]} 21. Rxc7+ {[%clk 0:02:07]}  Rf7 {[%clk 0:01:21]} 22. Rxf7+ {[%clk 0:02:06]}  Kxf7 {[%clk 0:01:21]} 23. Nc4 {[%clk 0:02:01]}  Rd4 {[%clk 0:01:21]} 24. f3 {[%clk 0:01:59]}  Ke7 {[%clk 0:01:19]} 25. Kg3 {[%clk 0:01:59]}  e5 {[%clk 0:01:15]} 26. Kf2 {[%clk 0:01:58]}  Kf6 {[%clk 0:01:12]} 27. Rh1 {[%clk 0:01:57]}  Kg7 {[%clk 0:01:10]} 28. Rh5 {[%clk 0:01:57]}  Rd1 {[%clk 0:01:09]} 29. Nxe5 {[%clk 0:01:52]}  Rd2+ {[%clk 0:01:07]} 30. Ke3 {[%clk 0:01:49]}  Rxa2 {[%clk 0:01:04]} 31. Nxg6 {[%clk 0:01:49]}  hxg6 {[%clk 0:01:04]} 32. Rb5 {[%clk 0:01:40]}  Rxg2 {[%clk 0:00:58]} 33. Rb7+ {[%clk 0:01:40]}  Kf6 {[%clk 0:00:59]} 34. Rxa7 {[%clk 0:01:41]}  Rb2 {[%clk 0:00:58]} 35. Ra6+ {[%clk 0:01:39]}  Kf7 {[%clk 0:00:53]} 36. Rb6 {[%clk 0:01:40]}  g5 {[%clk 0:00:53]} 37. f4 {[%clk 0:01:14]}  g4 {[%clk 0:00:49]} 38. f5 {[%clk 0:01:14]}  g3 {[%clk 0:00:44]} 39. Kf4 {[%clk 0:01:08]}  g2 {[%clk 0:00:41]} 40. Rg6 {[%clk 0:01:08]}  Rf2+ {[%clk 0:00:24]} 41. Ke5 {[%clk 0:01:07]}  Rb2 {[%clk 0:00:24]} 42. b4 {[%clk 0:01:06]}  Rd2 {[%clk 0:00:21]} 43. b5 {[%clk 0:01:04]}  Rb2 {[%clk 0:00:21]} 44. b6 {[%clk 0:01:04]}  Rb5+ {[%clk 0:00:20]} 45. Kf4 {[%clk 0:01:04]}  Rxb6 {[%clk 0:00:21]} 46. Rxg2 {[%clk 0:01:03]}  Rb4 {[%clk 0:00:20]} 47. Ra2 {[%clk 0:01:03]}  Rb7 {[%clk 0:00:19]} 48. Ra6 {[%clk 0:01:02]}  Rc7 {[%clk 0:00:18]} 49. e5 {[%clk 0:00:59]}  Rb7 {[%clk 0:00:16]} 50. Kg5 {[%clk 0:00:59]}  Kg7 {[%clk 0:00:15]} 51. Rg6+ {[%clk 0:00:59]}  Kf7 {[%clk 0:00:15]} 52. e6+ {[%clk 0:00:59]}  Kf8 {[%clk 0:00:15]} 53. Rf6+ {[%clk 0:00:57]}  Kg8 {[%clk 0:00:13]} 54. Rh6 {[%clk 0:00:57]}  Kg7 {[%clk 0:00:09]} 55. f6+ {[%clk 0:00:56]}  Kg8 {[%clk 0:00:09]} 56. f7+ {[%clk 0:00:56]}  Kg7 {[%clk 0:00:07]} 57. Rg6+ {[%clk 0:00:56]} 1-0


[Site "https://www.chess.com"]